Workbook

Sheet Pasiūlymas
A2: PIRKIMO SĄLYGŲ PRIEDAS "PASIŪLYMO FORMA"
A4: IŠORINĖ TARPLABORATORINĖ (TARPTAUTINĖ) TYRIMŲ KONTROLĖ
A6: Kam: | B6: VšĮ LSMU Kauno ligoninė
A8: Data: | B8: 2023 03 21
A9: Nr.: | B9: 03-21/01
A10: Vieta: | B10: Vilnius
A12: Tiekėjo pavadinimas / Ūkio subjektų grupės nariai: | C12: UAB ,,Interautomatika"
A13: Tiekėjo kodas (-ai): | C13: 300002253
A14: Tiekėjo adresas (-ai): | C14: Spaudos g. 6, LT-05131 Vilnius
A15: Tiekėjo PVM mokėtojo kodas(-ai): | C15: LT140309219
A16: Tiekėjo / Ūkio subjektų grupės atsakingo partnerio sąskaitos numeris, banko pavadinimas ir banko kodas (-ai): | C16: A/S LT 5270 4406 0003 9493 90 AB SEB bankas Banko kodas 70440
A17: Asmens atsakingo už pasiūlymą vardas, pavardė: | C17: Produktų grupės vadovė Alla Zolfaghari
A18: Asmens atsakingo už pasiūlymą telefono numeris, el. pašto adresas: | C18: tel. +370 656 36486, el.p. alla@interautomatika.com
A19: Tiekėjo / Ūkio subjektų grupės, laimėjimo atveju, pasirašančio sutartį asmens vardas, pavardė, pareigos: | C19: Direktorius Andrius Rubčinskas
A20: Tiekėjo / Ūkio subjektų grupės, laimėjimo atveju, už sutarties vykdymą atsakingo asmens vardas, pavardė, telefono numeris, elektroninio pašto adresas: | C20: Produktų grupės vadovė Alla Zolfaghari, tel. +370 656 36486, el.p. alla@interautomatika.com
A21: (1) Tiekėjo / Ūkio subjektų grupės narių, (2) ūkio subjektų, kurių pajėgumais remiamasi, ir (3) jei pašalinimo pagrindai taikomi visiems subtiekėjams - subtiekėjų, kolegialaus priežiūros organo (Stebėtojų tarybos) ir (ar) kolegialaus valdymo organo (Valdybos) narių sąrašas (jei sudaryta) ir (ar) asmuo, kuriam suteikti VPĮ 46 str. 2 d. 2 p. numatyti įgaliojimai | C21: -- | G21: =IF((SUMPRODUCT(--(C21=""))>0), "Privaloma užpildyti, kai taikomi pašalinimo pagrindai", "") -> 
A23: Tiekėjo patvirtinimai:
A24: 1. Šiuo pasiūlymu pažymime, kad sutinkame su visomi pirkimo sąlygomis, nustatytomis:
A25: 1.1. viešojo pirkimo dokumentuose
A26: 1.2. kituose pirkimo dokumentuose (jų paaiškinimuose, papildymuose).
A27: 2. Patvirtiname, kad informacija ir duomenys, pateikti pasiūlyme, yra teisingi ir apima viską, ko reikia tinkamam sutarties įvykdymui
A28: 3. Patvirtiname, kad jei pasiūlyme nenurodyti kolegialaus priežiūros/valdymo organų nariai, šie organai juridiniuose asmenyse nėra sudaryti (taikoma, kai pirkimo dokumentuose nustatyti pašalinimo pagrindai).
A29: 4. Pasiūlymas galioja iki termino, nustatyto pirkimo dokumentuose.
A30: 5. Tais atvejais, kai pagal galiojančius teisės aktus tiekėjui nereikia mokėti PVM, jis nurodo priežastis, dėl kurių PVM nemoka:
A31: 6. Tiekėjas kainas pateikia, nurodydamas ne daugiau skaičių po kablelio, nei leidžiama pirkimo dokumentuose.
A32: 1. DALIS | B32: IŠORINĖ KOKYBĖS KONTROLĖ BIOCHEMINIAMS TYRIMAMS
A34: Tiekėjo pasiūlymas:
A35: Nr. | B35: Pavadinimas | C35: Maksimali apimtis | D35: Mato vienetas | E35: Vieneto įkainis be PVM, Eur | F35: Suma be PVM, Eur
A36: 1. | B36: Išorinė kokybės kontrolė biocheminiams tyrimams
A37: 1.1. | B37: Išorinė kokybės kontrolė biocheminiams tyrimams | C37: 168 | D37: vnt. | E37: 28.39 | F37: =IF(ISBLANK(E37),"", PRODUCT(C37,E37)) -> 4769.52
A38: 1.1.1. | B38: galimybė registruoti 5 analizatorius
A39: 1.1.2. | B39: Nemokamas dalyvio serifikatas
A40: 1.1.3. | B40: ne mažiau kaip 2 mėginiai per metus
A41: 1.1.4. | B41: Analitės: albuminas, kalcis, chloras, bendras cholesterolis, kreatinkinazė, kreatininas, gliukozė, HDL , geležis, laktatai, LDH, kalis, baltymas, natris, trigliceridai, šlapimo rūgštis, ŠF, ALT, AST, pankreatinė amilazė, bendras bilirubinas, GGT, magnis, litis, šlapalas, fosforas,amilazė, tiesioginis bilirubinas
E42: Suma be PVM | F42: =IF((COUNT(C37:C41)<>COUNT(F37:F41)),"", SUM(F37:F41)) -> 4769.52 | G42: =IF((COUNT(C37:C41)<>COUNT(F37:F41)),"Neužpildytos visų objektų kainos", "") -> 
C43: Taikomas PVM dydis (%) | D43: 21 | E43: PVM suma | F43: =IF(OR(F42="",D43=""),"", PRODUCT(D43,F42)/100) -> 1001.5992 | G43: =IF(D43="", "Nurodykite taikomą PVM dydį", "") -> 
E44: Suma su PVM | F44: =IF(ISBLANK(F43), "", SUM(F42:F43)) -> 5771.1192
A48: 2. DALIS | B48: IŠORINĖ KOKYBĖS KONTROLĖ BIOCHEMINIAMS-IMUNOLOGINIAMS TYRIMAMS
A50: Tiekėjo pasiūlymas:
A51: Nr. | B51: Pavadinimas | C51: Maksimali apimtis | D51: Mato vienetas | E51: Vieneto įkainis be PVM, Eur | F51: Suma be PVM, Eur
A52: 2. | B52: išorinė kokybės kontrolė biocheminiams-imunologiniams tyrimams
A53: 2.1. | B53: išorinė kokybės kontrolė biocheminiams-imunologiniams tyrimams | C53: 90 | D53: vnt. | E53: 23.89 | F53: =IF(ISBLANK(E53),"", PRODUCT(C53,E53)) -> 2150.1
A54: 2.1.1. | B54: galimybė registruoti 5 analizatorius
A55: 2.1.2. | B55: Nemokamas dalyvio serifikatas
A56: 2.1.3. | B56: ne mažiau kaip 2 mėginiai per metus
A57: 2.1.4. | B57: Analitės:AFP, Ca-125, Ca-15-3, Ca19-9, CEA, feritinas, folinė rūgštis, IgE, PSA, FT3, FT4, TSH, vit.B12, vit.D, PTH, vankomicinas
E58: Suma be PVM | F58: =IF((COUNT(C53:C57)<>COUNT(F53:F57)),"", SUM(F53:F57)) -> 2150.1 | G58: =IF((COUNT(C53:C57)<>COUNT(F53:F57)),"Neužpildytos visų objektų kainos", "") -> 
C59: Taikomas PVM dydis (%) | D59: 21 | E59: PVM suma | F59: =IF(OR(F58="",D59=""),"", PRODUCT(D59,F58)/100) -> 451.521 | G59: =IF(D59="", "Nurodykite taikomą PVM dydį", "") -> 
E60: Suma su PVM | F60: =IF(ISBLANK(F59), "", SUM(F58:F59)) -> 2601.621
A64: 3. DALIS | B64: IŠORINĖ KOKYBĖS KONTROLĖ AUTOMATIZUOTAM KRAUJO TYRIMUI 5 DIF. HEMATOLOGINIU ANALIZATORIUMI
A66: Tiekėjo pasiūlymas:
A67: Nr. | B67: Pavadinimas | C67: Maksimali apimtis | D67: Mato vienetas | E67: Vieneto įkainis be PVM, Eur | F67: Suma be PVM, Eur
A68: 3. | B68: išorinė kokybės kontrolė automatizuotam kraujo tyrimui 5 dif. hematologiniu analizatoriumi
A69: 3.1. | B69: išorinė kokybės kontrolė automatizuotam kraujo tyrimui 5 dif. hematologiniu analizatoriumi | C69: 6 | D69: kompl. | E69: 102 | F69: =IF(ISBLANK(E69),"", PRODUCT(C69,E69)) -> 612
A70: 3.1.1. | B70: galimybė registruoti 5 analizatorius
A71: 3.1.2. | B71: Nemokamas dalyvio serifikatas
A72: 3.1.3. | B72: ne mažiau kaip 2 mėginiai per metus
A73: 3.1.4. | B73: parametrai: WBC, RBC, HGB, HCT, MCV, MCH, MCHC, RDW-CV, RDW-SD, PLT
E74: Suma be PVM | F74: =IF((COUNT(C69:C73)<>COUNT(F69:F73)),"", SUM(F69:F73)) -> 612 | G74: =IF((COUNT(C69:C73)<>COUNT(F69:F73)),"Neužpildytos visų objektų kainos", "") -> 
C75: Taikomas PVM dydis (%) | D75: 21 | E75: PVM suma | F75: =IF(OR(F74="",D75=""),"", PRODUCT(D75,F74)/100) -> 128.52 | G75: =IF(D75="", "Nurodykite taikomą PVM dydį", "") -> 
E76: Suma su PVM | F76: =IF(ISBLANK(F75), "", SUM(F74:F75)) -> 740.52
A80: 4. DALIS | B80: IŠORINĖ KOKYBĖS KONTROLĖ KREŠĖJIMO TYRIMAMS
A82: Tiekėjo pasiūlymas:
A83: Nr. | B83: Pavadinimas | C83: Maksimali apimtis | D83: Mato vienetas | E83: Vieneto įkainis be PVM, Eur | F83: Suma be PVM, Eur
A84: 4. | B84: išorinė kokybės kontrolė krešėjimo tyrimams
A85: 4.1. | B85: išorinė kokybės kontrolė krešėjimo tyrimams | C85: 24 | D85: vnt. | E85: 95 | F85: =IF(ISBLANK(E85),"", PRODUCT(C85,E85)) -> 2280
A86: 4.1.1. | B86: analizatoriai 3.
A87: 4.1.2. | B87: Nemokamas dalyvio serifikatas
A88: 4.1.3. | B88: analitės: SPA (iNR), DATL, fibrinogenas, D-dimerai
A89: 4.1.4. | B89: ne mažiau kaip 2 mėginiai per metus
E90: Suma be PVM | F90: =IF((COUNT(C85:C89)<>COUNT(F85:F89)),"", SUM(F85:F89)) -> 2280 | G90: =IF((COUNT(C85:C89)<>COUNT(F85:F89)),"Neužpildytos visų objektų kainos", "") -> 
C91: Taikomas PVM dydis (%) | D91: 21 | E91: PVM suma | F91: =IF(OR(F90="",D91=""),"", PRODUCT(D91,F90)/100) -> 478.8 | G91: =IF(D91="", "Nurodykite taikomą PVM dydį", "") -> 
E92: Suma su PVM | F92: =IF(ISBLANK(F91), "", SUM(F90:F91)) -> 2758.8
A96: 5. DALIS | B96: IŠORINĖ KOKYBĖS KONTROLĖ JUOSTELINIAM ŠLAPIMO TYRIMUI
A98: Tiekėjo pasiūlymas:
A99: Nr. | B99: Pavadinimas | C99: Maksimali apimtis | D99: Mato vienetas | E99: Vieneto įkainis be PVM, Eur | F99: Suma be PVM, Eur
A100: 5. | B100: išorinė kokybės kontrolė juosteliniam šlapimo tyrimui
A101: 5.1. | B101: išorinė kokybės kontrolė juosteliniam šlapimo tyrimui | C101: 12 | D101: kompl. | E101: 142 | F101: =IF(ISBLANK(E101),"", PRODUCT(C101,E101)) -> 1704
A102: 5.1.1. | B102: ne mažiau kaip 2 mėginiai per metus 4 analizatoriams
A103: 5.1.2. | B103: Nemokamas dalyvio serifikatas
E104: Suma be PVM | F104: =IF((COUNT(C101:C103)<>COUNT(F101:F103)),"", SUM(F101:F103)) -> 1704 | G104: =IF((COUNT(C101:C103)<>COUNT(F101:F103)),"Neužpildytos visų objektų kainos", "") -> 
C105: Taikomas PVM dydis (%) | D105: 21 | E105: PVM suma | F105: =IF(OR(F104="",D105=""),"", PRODUCT(D105,F104)/100) -> 357.84 | G105: =IF(D105="", "Nurodykite taikomą PVM dydį", "") -> 
E106: Suma su PVM | F106: =IF(ISBLANK(F105), "", SUM(F104:F105)) -> 2061.84
A110: 6. DALIS | B110: IŠORINĖ KOKYBĖS KONTROLĖ ŠLAPIMO NUOSĖDŲ MIKROSKOPIJAI
A112: Tiekėjo pasiūlymas:
A113: Nr. | B113: Pavadinimas | C113: Maksimali apimtis | D113: Mato vienetas | E113: Vieneto įkainis be PVM, Eur | F113: Suma be PVM, Eur
A114: 6. | B114: išorinė kokybės kontrolė šlapimo nuosėdų mikroskopijai
A115: 6.1. | B115: išorinė kokybės kontrolė šlapimo nuosėdų mikroskopijai | C115: 24 | D115: vnt. | E115: 62 | F115: =IF(ISBLANK(E115),"", PRODUCT(C115,E115)) -> 1488
A116: 6.1.1. | B116: Nemokamas dalyvio serifikatas
A117: 6.1.2. | B117: ne mažiau kaip 2 mėginiai per metus 4 veiklos adresais
E118: Suma be PVM | F118: =IF((COUNT(C115:C117)<>COUNT(F115:F117)),"", SUM(F115:F117)) -> 1488 | G118: =IF((COUNT(C115:C117)<>COUNT(F115:F117)),"Neužpildytos visų objektų kainos", "") -> 
C119: Taikomas PVM dydis (%) | D119: 21 | E119: PVM suma | F119: =IF(OR(F118="",D119=""),"", PRODUCT(D119,F118)/100) -> 312.48 | G119: =IF(D119="", "Nurodykite taikomą PVM dydį", "") -> 
E120: Suma su PVM | F120: =IF(ISBLANK(F119), "", SUM(F118:F119)) -> 1800.48
A124: 7. DALIS | B124: IŠORINĖ KOKYBĖS KONTROLĖ SMEGENŲ SKYSČIO BIOCHEMINIAMS TYRIMAMS
A126: Tiekėjo pasiūlymas:
A127: Nr. | B127: Pavadinimas | C127: Maksimali apimtis | D127: Mato vienetas | E127: Vieneto įkainis be PVM, Eur | F127: Suma be PVM, Eur
A128: 7. | B128: išorinė kokybės kontrolė smegenų skysčio biocheminiams tyrimams
A129: 7.1. | B129: išorinė kokybės kontrolė smegenų skysčio biocheminiams tyrimams | C129: 12 | D129: kompl. | E129: 139 | F129: =IF(ISBLANK(E129),"", PRODUCT(C129,E129)) -> 1668
A130: 7.1.1. | B130: ne mažiau kaip 2 mėginių komplektai per metus 2 veiklos adresais
A131: 7.1.2. | B131: Nemokamas dalyvio serifikatas
E132: Suma be PVM | F132: =IF((COUNT(C129:C131)<>COUNT(F129:F131)),"", SUM(F129:F131)) -> 1668 | G132: =IF((COUNT(C129:C131)<>COUNT(F129:F131)),"Neužpildytos visų objektų kainos", "") -> 
C133: Taikomas PVM dydis (%) | D133: 21 | E133: PVM suma | F133: =IF(OR(F132="",D133=""),"", PRODUCT(D133,F132)/100) -> 350.28 | G133: =IF(D133="", "Nurodykite taikomą PVM dydį", "") -> 
E134: Suma su PVM | F134: =IF(ISBLANK(F133), "", SUM(F132:F133)) -> 2018.28
A138: 8. DALIS | B138: IŠORINĖ KOKYBĖS KONTROLĖ HEMATOLOGINIŲ TEPINĖLIŲ MIKROSKOPIJAI
A140: Tiekėjo pasiūlymas:
A141: Nr. | B141: Pavadinimas | C141: Maksimali apimtis | D141: Mato vienetas | E141: Vieneto įkainis be PVM, Eur | F141: Suma be PVM, Eur
A142: 8. | B142: išorinė kokybės kontrolė hematologinių tepinėlių mikroskopijai
A143: 8.1. | B143: išorinė kokybės kontrolė hematologinių tepinėlių mikroskopijai | C143: 18 | D143: vnt. | E143: 109 | F143: =IF(ISBLANK(E143),"", PRODUCT(C143,E143)) -> 1962
A144: 8.1.1. | B144: ne mažiau kaip 2 mėginiai per metus 3 veiklos adresais
A145: 8.1.2. | B145: Nemokamas dalyvio serifikatas
E146: Suma be PVM | F146: =IF((COUNT(C143:C145)<>COUNT(F143:F145)),"", SUM(F143:F145)) -> 1962 | G146: =IF((COUNT(C143:C145)<>COUNT(F143:F145)),"Neužpildytos visų objektų kainos", "") -> 
C147: Taikomas PVM dydis (%) | D147: 21 | E147: PVM suma | F147: =IF(OR(F146="",D147=""),"", PRODUCT(D147,F146)/100) -> 412.02 | G147: =IF(D147="", "Nurodykite taikomą PVM dydį", "") -> 
E148: Suma su PVM | F148: =IF(ISBLANK(F147), "", SUM(F146:F147)) -> 2374.02
A152: 9. DALIS | B152: IŠORINĖ KOKYBĖS KONTROLĖ KRAUJO DUJOMS
A154: Tiekėjo pasiūlymas:
A155: Nr. | B155: Pavadinimas | C155: Maksimali apimtis | D155: Mato vienetas | E155: Vieneto įkainis be PVM, Eur | F155: Suma be PVM, Eur
A156: 9. | B156: išorinė kokybės kontrolė kraujo dujoms
A157: 9.1. | B157: išorinė kokybės kontrolė kraujo dujoms | C157: 20 | D157: vnt. | E157: 122.4 | F157: =IF(ISBLANK(E157),"", PRODUCT(C157,E157)) -> 2448
A158: 9.1.1. | B158: 4 analizatoriai
A159: 9.1.2. | B159: Nemokamas dalyvio serifikatas
A160: 9.1.3. | B160: ne mažiau kaip 2 mėginiai per metus
E161: Suma be PVM | F161: =IF((COUNT(C157:C160)<>COUNT(F157:F160)),"", SUM(F157:F160)) -> 2448 | G161: =IF((COUNT(C157:C160)<>COUNT(F157:F160)),"Neužpildytos visų objektų kainos", "") -> 
C162: Taikomas PVM dydis (%) | D162: 21 | E162: PVM suma | F162: =IF(OR(F161="",D162=""),"", PRODUCT(D162,F161)/100) -> 514.08 | G162: =IF(D162="", "Nurodykite taikomą PVM dydį", "") -> 
E163: Suma su PVM | F163: =IF(ISBLANK(F162), "", SUM(F161:F162)) -> 2962.08
A167: 10. DALIS | B167: IŠORINĖ KOKYBĖS KONTROLĖ MIOKARDO PAŽEIDIMO ŽYMENIMS
A169: Tiekėjo pasiūlymas:
A170: Nr. | B170: Pavadinimas | C170: Maksimali apimtis | D170: Mato vienetas | E170: Vieneto įkainis be PVM, Eur | F170: Suma be PVM, Eur
A171: 10. | B171: išorinė kokybės kontrolė miokardo pažeidimo žymenims
A172: 10.1. | B172: išorinė kokybės kontrolė miokardo pažeidimo žymenims | C172: 60 | D172: vnt. | E172: 188 | F172: =IF(ISBLANK(E172),"", PRODUCT(C172,E172)) -> 11280
A173: 10.1.1. | B173: NT-proBNP (2 analizatoriai), CRB (4 analizatoriai) CK-MB (1analizatoroius), Troponinas T-hs 1 analizatorius, I-hs 2 analizatoriai)
A174: 10.1.2. | B174: Nemokamas dalyvio serifikatas
A175: 10.1.3. | B175: ne mažiau kaip 2 mėginiai per metus
E176: Suma be PVM | F176: =IF((COUNT(C172:C175)<>COUNT(F172:F175)),"", SUM(F172:F175)) -> 11280 | G176: =IF((COUNT(C172:C175)<>COUNT(F172:F175)),"Neužpildytos visų objektų kainos", "") -> 
C177: Taikomas PVM dydis (%) | D177: 21 | E177: PVM suma | F177: =IF(OR(F176="",D177=""),"", PRODUCT(D177,F176)/100) -> 2368.8 | G177: =IF(D177="", "Nurodykite taikomą PVM dydį", "") -> 
E178: Suma su PVM | F178: =IF(ISBLANK(F177), "", SUM(F176:F177)) -> 13648.8
A182: 11. DALIS | B182: IŠORINĖ KOKYBĖS KONTROLĖ IMUNOHEMATOLOGIJAI
A184: Tiekėjo pasiūlymas:
A185: Nr. | B185: Pavadinimas | C185: Maksimali apimtis | D185: Mato vienetas | E185: Vieneto įkainis be PVM, Eur | F185: Suma be PVM, Eur
A186: 11. | B186: išorinė kokybės kontrolė imunohematologijai
A187: 11.1. | B187: išorinė kokybės kontrolė imunohematologijai | C187: 12 | D187: kompl. | F187: =IF(ISBLANK(E187),"", PRODUCT(C187,E187)) -> 
A188: 11.1.1. | B188: Analitės: kraujo grupė pagal ABO ir RhD nustatymas, antikūnių paieška mir suderinamumas, tiesioginis Kumbsas
A189: 11.1.2. | B189: ne mažiau kaip po 2 mėginius per metus 3 veiklos adresais
A190: 11.1.3. | B190: Nemokamas dalyvio serifikatas
E191: Suma be PVM | F191: =IF((COUNT(C187:C190)<>COUNT(F187:F190)),"", SUM(F187:F190)) ->  | G191: =IF((COUNT(C187:C190)<>COUNT(F187:F190)),"Neužpildytos visų objektų kainos", "") -> Neužpildytos visų objektų kainos
C192: Taikomas PVM dydis (%) | E192: PVM suma | F192: =IF(OR(F191="",D192=""),"", PRODUCT(D192,F191)/100) ->  | G192: =IF(D192="", "Nurodykite taikomą PVM dydį", "") -> Nurodykite taikomą PVM dydį
E193: Suma su PVM | F193: =IF(ISBLANK(F192), "", SUM(F191:F192)) -> 0
A197: 12. DALIS | B197: IŠORINĖ KOKYBĖS KONTROLĖ PROKALCITONINO NUSTATYMUI
A199: Tiekėjo pasiūlymas:
A200: Nr. | B200: Pavadinimas | C200: Maksimali apimtis | D200: Mato vienetas | E200: Vieneto įkainis be PVM, Eur | F200: Suma be PVM, Eur
A201: 12. | B201: išorinė kokybės kontrolė prokalcitonino nustatymui
A202: 12.1. | B202: išorinė kokybės kontrolė prokalcitonino nustatymui | C202: 12 | D202: vnt. | E202: 108 | F202: =IF(ISBLANK(E202),"", PRODUCT(C202,E202)) -> 1296
A203: 12.1.1. | B203: 2 analizatoriai, ne mažiau kaip 2 mėginiai per metus
A204: 12.1.2. | B204: Nemokamas dalyvio serifikatas
E205: Suma be PVM | F205: =IF((COUNT(C202:C204)<>COUNT(F202:F204)),"", SUM(F202:F204)) -> 1296 | G205: =IF((COUNT(C202:C204)<>COUNT(F202:F204)),"Neužpildytos visų objektų kainos", "") -> 
C206: Taikomas PVM dydis (%) | D206: 21 | E206: PVM suma | F206: =IF(OR(F205="",D206=""),"", PRODUCT(D206,F205)/100) -> 272.16 | G206: =IF(D206="", "Nurodykite taikomą PVM dydį", "") -> 
E207: Suma su PVM | F207: =IF(ISBLANK(F206), "", SUM(F205:F206)) -> 1568.16
A211: 13. DALIS | B211: IŠORINĖ KOKYBĖS KONTROLĖ ATPO NUSTATYMUI
A213: Tiekėjo pasiūlymas:
A214: Nr. | B214: Pavadinimas | C214: Maksimali apimtis | D214: Mato vienetas | E214: Vieneto įkainis be PVM, Eur | F214: Suma be PVM, Eur
A215: 13. | B215: išorinė kokybės kontrolė ATPO nustatymui
A216: 13.1. | B216: išorinė kokybės kontrolė ATPO nustatymui | C216: 6 | D216: vnt. | E216: 104 | F216: =IF(ISBLANK(E216),"", PRODUCT(C216,E216)) -> 624
A217: 13.1.1. | B217: ne mažiau kaip po 2 mėginius per metus
A218: 13.1.2. | B218: Nemokamas dalyvio serifikatas
E219: Suma be PVM | F219: =IF((COUNT(C216:C218)<>COUNT(F216:F218)),"", SUM(F216:F218)) -> 624 | G219: =IF((COUNT(C216:C218)<>COUNT(F216:F218)),"Neužpildytos visų objektų kainos", "") -> 
C220: Taikomas PVM dydis (%) | D220: 21 | E220: PVM suma | F220: =IF(OR(F219="",D220=""),"", PRODUCT(D220,F219)/100) -> 131.04 | G220: =IF(D220="", "Nurodykite taikomą PVM dydį", "") -> 
E221: Suma su PVM | F221: =IF(ISBLANK(F220), "", SUM(F219:F220)) -> 755.04
A225: 14. DALIS | B225: IŠORINĖ KOKYBĖS KONTROLĖ INFEKCIJŲ SEROLOGINIAMS TYRIMAMS IMUNOFERMENTINIU METODU
A227: Tiekėjo pasiūlymas:
A228: Nr. | B228: Pavadinimas | C228: Maksimali apimtis | D228: Mato vienetas | E228: Vieneto įkainis be PVM, Eur | F228: Suma be PVM, Eur
A229: 14. | B229: išorinė kokybės kontrolė infekcijų serologiniams tyrimams imunofermentiniu metodu
A230: 14.1. | B230: citomegalo viruso IgM ir IgG | C230: 4 | D230: vnt. | E230: 122 | F230: =IF(ISBLANK(E230),"", PRODUCT(C230,E230)) -> 488
A231: 14.1.1. | B231: ne mažiau kaip 2 mėginiai per metus
A232: 14.2. | B232: Anti HSV 1/2 IgG ir IgM | C232: 4 | D232: vnt. | E232: 138 | F232: =IF(ISBLANK(E232),"", PRODUCT(C232,E232)) -> 552
A233: 14.2.1. | B233: ne mažiau kaip 2 mėginiai per metus
A234: 14.3. | B234: Varicella Zoster IgG, IgM | C234: 4 | D234: vnt. | E234: 129 | F234: =IF(ISBLANK(E234),"", PRODUCT(C234,E234)) -> 516
A235: 14.3.1. | B235: ne mažiau kaip 2 mėginiai per metus
A236: 14.4. | B236: Hepatito A viruso IgM | C236: 4 | D236: vnt. | E236: 116 | F236: =IF(ISBLANK(E236),"", PRODUCT(C236,E236)) -> 464
A237: 14.4.1. | B237: ne mažiau kaip 2 mėginiai per metus
A238: 14.5. | B238: Hepatito B viruso HBsAg, anti-HBcor, anti-HBc-IgM, HBEAg, anti-HBc, anti-HBg | C238: 4 | D238: vnt. | E238: 342 | F238: =IF(ISBLANK(E238),"", PRODUCT(C238,E238)) -> 1368
A239: 14.5.1. | B239: ne mažiau kaip 2 mėginiai per metus
A240: 14.6. | B240: Hepatito C antikūnai | C240: 4 | D240: vnt. | E240: 144 | F240: =IF(ISBLANK(E240),"", PRODUCT(C240,E240)) -> 576
A241: 14.6.1. | B241: ne mažiau kaip 2 mėginiai per metus
A242: 14.7. | B242: ŽIV-1/ŽIV 2 antikūnai | C242: 4 | D242: vnt. | E242: 167 | F242: =IF(ISBLANK(E242),"", PRODUCT(C242,E242)) -> 668
A243: 14.7.1. | B243: ne mažiau kaip 2 mėginiai per metus
A244: 14.8. | B244: T.gondii IgM, IgG | C244: 4 | D244: vnt. | E244: 105 | F244: =IF(ISBLANK(E244),"", PRODUCT(C244,E244)) -> 420
A245: 14.8.1. | B245: ne mažiau kaip 2 mėginiai per metus
A246: 14.9. | B246: Treponema pallidum IgM, IgG | C246: 4 | D246: vnt. | E246: 115 | F246: =IF(ISBLANK(E246),"", PRODUCT(C246,E246)) -> 460
A247: 14.9.1. | B247: ne mažiau kaip 2 mėginiai per metus
A248: 14.10. | B248: Anti-EBV IgM, IgG | C248: 4 | D248: vnt. | E248: 131 | F248: =IF(ISBLANK(E248),"", PRODUCT(C248,E248)) -> 524
A249: 14.10.1. | B249: ne mažiau kaip 2 mėginiai per metus
A250: 14.11. | B250: Mycoplazma pneumoniae IgM | C250: 4 | D250: vnt. | E250: 116 | F250: =IF(ISBLANK(E250),"", PRODUCT(C250,E250)) -> 464
A251: 14.11.1. | B251: ne mažiau kaip 2 mėginiai per metus
A252: 14.12. | B252: Clamydia pneumoniae IgM | C252: 4 | D252: vnt. | E252: 116 | F252: =IF(ISBLANK(E252),"", PRODUCT(C252,E252)) -> 464
A253: 14.12.1. | B253: ne mažiau kaip 2 mėginiai per metus
A254: 14.13. | B254: Boreliozės IgM, IgG | C254: 4 | D254: vnt. | E254: 115 | F254: =IF(ISBLANK(E254),"", PRODUCT(C254,E254)) -> 460
A255: 14.13.1. | B255: ne mažiau kaip 2 mėginiai per metus
A256: 14.14. | B256: H. pylori IgG | C256: 4 | D256: vnt. | E256: 116 | F256: =IF(ISBLANK(E256),"", PRODUCT(C256,E256)) -> 464
A257: 14.14.1. | B257: ne mažiau kaip 2 mėginiai per metus
A258: 14.15. | B258: Erkinio encefalito viruso IgG, IgM | C258: 4 | D258: vnt. | E258: 141 | F258: =IF(ISBLANK(E258),"", PRODUCT(C258,E258)) -> 564
A259: 14.15.1. | B259: ne mažiau kaip 2 mėginiai per metus
... 100 more rows

Sheet Subtiekėjai ir priedai
A2: Ūkio subjektai (įskaitant kvazisubtiekėjus - fiziniai asmenys, kuriuos ketinama įdarbinti pirkimo laimėjimo atveju), kurių pajėgumais tiekėjas remiasi, kad atitiktų keliamus kvalifikacijos reikalavimus:
A5: Pavadinimas* | C5: Kodas, adresas | F5: Perduodami įsipareigojimai | I5: Perduodamų įsipareigojimų dalis nuo visos pirkimo sutarties (Eur arba %) | K5: Kval. Reikalavimo Nr.
A17: Subtiekėjams / subteikėjams / subrangovams numatomos perduoti veiklos (privaloma nurodyti) ir šių ūkio subjektų pavadinimai (jei žinomi):
A19: Pavadinimas | C19: Kodas, adresas | F19: Perduodama veikla* | I19: Perduodamos veiklos dalis nuo visos pirkimo sutarties (Eur arba %)
A33: Kartu su pasiūlymu pateikiami šie dokumentai:
A35: Nr. | B35: Dokumento pavadinimas | H35: Dokumentas yra konfidencialus? Taip/Ne
A36: 1 | B36: Jungtinės veiklos kopija (jei taikoma) | H36: --
A37: 2 | B37: Europos bendrasis viešųjų pirkimų dokumentas | H37: Ne
A38: 3 | B38: Subtiekimo sutartis, ketinimų protokolas, preliminarios sutartys ar kiti dokumentai, patvirtinantys, kad laimėjus pirkimą tiekėjui bus prieinami kitų ūkio subjektų ištekliai (jei pasitelkiami kvalifikacijos atitikimui) | H38: --
A39: 4 | B39: Techninė dokumentacija.zip | H39: Ne
A40: 5 | B40: Kvalifikacijos dokumentai.zip | H40: Ne
A48: Pasiūlyme nurodyta Prekės kaina, išskyrus jos sudedamąsias dalis, subtiekėjai, taip pat kita informacija, kuri teisės aktų nustatyta tvarka turi būti skelbiama arba kitokiu būdu viešai prieinama visuomenei, nėra laikoma konfidencialia informacija. Konfidencialią informaciją sudaro, visų pirma, komercinė (gamybinė) paslaptis ir konfidencialieji pasiūlymų aspektai. Informacija, kurią viešai skelbti įpareigoja Lietuvos Respublikos įstatymai, negali būti tiekėjo nurodoma kaip konfidenciali, todėl, tiekėjui nurodžius tokią informaciją kaip konfidencialią, perkančioji organizacija turi teisę ją skelbti. Jei tiekėjas nenurodo konfidencialios informacijos, laikoma, kad konfidencialios informacijos tiekėjo pasiūlyme nėra. Vadovaujantis Informacijos viešinimo Centrinėje viešųjų pirkimų informacinėje sistemoje tvarkos aprašu, patvirtintu Viešųjų pirkimų tarnybos direktoriaus 2017 m. birželio 19 d. įsakymu Nr. 1S-91 „Dėl Informacijos viešinimo Centrinėje viešųjų pirkimų informacinėje sistemoje tvarkos aprašo patvirtinimo“, perkančioji organizacija laimėjusio dalyvio pasiūlymą, išskyrus informaciją, kurią tiekėjas nurodė kaip konfidencialią, paskelbs CVP IS.
A51: Tiekėjo arba jo įgalioto asmens pareigų pavadinimas: | E51: Direktorius
A53: Pasirašančio asmens vardas ir pavardė: | E53: Andrius Rubčinskas
A100: 7855 2023-03-02 15:48:53
